{"text_format":"1","workbook":"xlsx","n_sheets":13,"sheets":["1. Forside","2. Samlet prisloft","3. Driftsomkostninger","4. Historiske investeringer","5. Gennemførte investeringer","6. Korrektion investeringer","7. Planlagte investeringer","8. 1-1 omkostninger","9. Miljø- og servicemål","10. Klimatilpasning","11. Nettofinansielle poster","12. Over- eller underdækning","13. Kontrol med indtægtsrammen"],"not_rendered":{"charts":0,"images":0,"macros":1,"external_links":0,"defined_names":0,"comments":0,"pivot_tables":0},"unopened":[],"bounds":{"document_bytes":16777216,"sheet_cells":100000,"rows_first":2000,"rows_last":500,"rows_between":2000,"halvings":0,"cell_chars":16384,"cell_head_chars":4096},"cells_cut":0,"cells_raw":0,"read":"whole","date_system":"1900"}

{"sheet":"1. Forside","index":0,"n_rows":27,"n_cols":4,"rows_kept":27,"cut":false,"hidden":false,"merged":[[26,3,26,5],[25,3,25,5],[24,3,24,5],[23,3,23,5],[22,3,22,5],[21,3,21,5],[20,3,20,5],[19,3,19,5],[18,3,18,5],[7,3,7,5],[12,3,12,5],[15,3,15,5],[16,3,16,5],[17,3,17,5]]}
["Egedal Spildevand A/S"]
[]
[]
[]
[]
[]
[]
[null,null,null,"Bilag A"]
[]
[]
[]
[]
[null,null,null,"Indholdsfortegnelse"]
[]
[]
[null,null,"Fane nr. 2","Samlet prisloft "]
[null,null,"Fane nr. 3","Driftsomkostninger"]
[null,null,"Fane nr. 4","Historiske investeringer "]
[null,null,"Fane nr. 5","Gennemførte investeringer"]
[null,null,"Fane nr. 6","Korrektion investeringer"]
[null,null,"Fane nr. 7","Planlagte investeringer"]
[null,null,"Fane nr. 8","1:1 omkostninger"]
[null,null,"Fane nr. 9","Miljø- og servicemål"]
[null,null,"Fane nr. 10","Klimatilpasning"]
[null,null,"Fane nr. 11","Nettofinansielle poster"]
[null,null,"Fane nr. 12","Over- eller underdækning"]
[null,null,"Fane nr. 13","Kontrol med indtægtsrammen og oversigt over ekstraordinære effektiviseringsgevinster"]

{"sheet":"2. Samlet prisloft","index":1,"n_rows":38,"n_cols":6,"rows_kept":38,"cut":false,"hidden":false,"merged":[[3,1,3,5]]}
[{"$f":"'1. Forside'!A1","v":"Egedal Spildevand A/S"}]
[]
[]
[null,"Fane 2. Samlet prisloft for 2015"]
[]
[null,"Driftsomkostninger"]
[null,"Driftsomkostninger i prisloftet for 2014",{"$f":"'3. Driftsomkostninger'!C29","v":24759971.483187586},"kr."]
[null,"Bortfald af væsentlige omkostninger",{"$f":"-'3. Driftsomkostninger'!C25","v":0},"kr."]
[null,"Korrektion for prisudviklingen 2014-2015",{"$f":"'3. Driftsomkostninger'!C31","v":19807.97718655007},"kr."]
[null,"Forhøjelse til effektivt niveau iht. benchmarkingen",{"$f":"'3. Driftsomkostninger'!C37","v":0},"kr."]
[null,"Korrektion for generelt effektiviseringskrav",{"$f":"-'3. Driftsomkostninger'!C43","v":-108943.87452602538},"kr."]
[null,"Korrektion for individuelt effektiviseringskrav",{"$f":"-'3. Driftsomkostninger'!C52","v":-1237998.5741593794},"kr."]
[null,"Driftsomkostninger i alt",{"$f":"SUM(C7:C12)","v":23432837.011688732},"kr.",{"$f":"C13","v":23432837.011688732}," kr."]
[null,"Investeringer"]
[null,"Tillæg for historiske investeringer",{"$f":"'4. Historiske investeringer'!C9","v":35154327.252014376},"kr."]
[null,"Tillæg for gennemførte investeringer i 2011-2013",{"$f":"'5. Gennemførte investeringer'!F38","v":2305753.9816666665},"kr."]
[null,"Korrektion af tillæg for planlagte investeringer vedrørende 2013  ",{"$f":"'6. Korrektion investeringer'!C10","v":-569564.89999999967},"kr."]
[null,"Tillæg for planlagte investeringer i 2014 og 2015",{"$f":"'7. Planlagte investeringer'!F40","v":1255500},"kr."]
[null,"Investeringstillæg i alt",{"$f":"SUM(C15:C18)","v":38146016.333681047},"kr.",{"$f":"C19","v":38146016.333681047}," kr."]
[null,"Øvrige omkostninger mv."]
[null,"Tillæg for 1:1 omkostninger i 2015",{"$f":"'8. 1-1 omkostninger'!C12","v":5669000},"kr."]
[null,"Tillæg vedr. revisorerklæringer og DANVA/FVD-kontingent",{"$f":"'8. 1-1 omkostninger'!C20","v":84000},"kr."]
[null,"Korrektion ift. faktiske 1:1 omkostninger i 2013",{"$f":"'8. 1-1 omkostninger'!C26","v":-679028},"kr."]
[null,"Tillæg for driftsomkostninger til miljø- og servicemål i 2015",{"$f":"'9. Miljø- og servicemål'!C9","v":285000},"kr."]
[null,"Korrektion ift. faktiske driftsomkostninger til miljø- og servicemål i 2013",{"$f":"'9. Miljø- og servicemål'!C16","v":-261446},"kr."]
[null,"Tillæg for driftsomkostninger til medfinansiering af klimatilpasningsprojekter i 2015",{"$f":"'10. Klimatilpasning'!C9","v":305000},"kr."]
[null,"Korrektion ift. faktiske omkostninger til medfinansiering af klimatilpasningsprojekter i 2013",{"$f":"'10. Klimatilpasning'!C16","v":0},"kr."]
[null,"Tillæg/fradrag for nettofinansielle poster i 2015",{"$f":"'11. Nettofinansielle poster'!C9","v":-300000},"kr."]
[null,"Korrektion ift. faktiske nettofinansielle poster i 2013",{"$f":"'11. Nettofinansielle poster'!C16","v":-33987},"kr."]
[null,"Øvrige omkostninger mv. i alt",{"$f":"SUM(C21:C29)","v":5068539},"kr.",{"$f":"C30","v":5068539}," kr."]
[null,"Historisk over- eller underdækning"]
[null,"Tillæg/fradrag for over- eller underdækning til og med 2010",{"$f":"'12. Over- eller underdækning'!C11","v":-630394.6269841271},"kr.",{"$f":"C32","v":-630394.6269841271}," kr."]
[null,"Korrektion i forhold til tidligere indtægtsramme "]
[null,"Korrektion for overholdelse af indtægtsramme i prisloft 2013",{"$f":"'13. Kontrol med indtægtsrammen'!E27","v":-6829702.1114106104},"kr.",{"$f":"C34","v":-6829702.1114106104}," kr."]
[null,"Samlet prisloft"]
[null,"Indtægtsramme i 2015 ",null,null,{"$f":"SUM(E13:E34)","v":59187295.606975041}," kr."]
[null,"Debiteret vandmængde i 2013",null,null,1601501," m3"]
[null,"Prisloft 2015",null,null,{"$f":"E36/E37","v":36.95738910370649}," kr./m3"]

{"sheet":"3. Driftsomkostninger","index":2,"n_rows":52,"n_cols":4,"rows_kept":52,"cut":false,"hidden":false,"merged":[[3,1,3,3]]}
[{"$f":"'1. Forside'!A1","v":"Egedal Spildevand A/S"}]
[]
[]
[null,"Fane 3. Driftsomkostninger "]
[]
[null,"Driftsomkostningerne i prisloftet for 2014"]
[null,"Korrigerede driftsomkostninger i prisloftet for 2014 (DOiPL 2014) inkl. § 8, stk. 2, nr. 1-tillæg på 2.784.021 kr.",22698560.081958212,"kr."]
[null,"Prisfremskrivning 1,5 pct.",{"$f":"0.015*SUM(C7:C7)","v":340478.40122937318},"kr."]
[null,"Generelt effektiviseringskrav (0 pct.)",0,"kr."]
[null,"Tillæg iht. § 8, stk. 2, pkt. 1 prisfremskrevet til 2014-niveau",2784021,"kr."]
[null,"Individuelt effektiviseringskrav ",0,"kr."]
[null,"Driftsomkostningerne i prisloftet for 2014 (DOiPL 2014)",{"$f":"SUM(C7:C11)","v":25823059.483187586},"kr."]
[]
[]
[null,"Forskel i § 8, stk. 2, nr. 1 - tillæg"]
[]
[null,"Godkendt tillæg i PL2014 prisfremskrevet til 2014-niveau",2784021,"kr."]
[null,"Godkendt tillæg i PL2015 prisfremskrevet til 2015-niveau",1720933,"kr."]
[null,"Forskel",{"$f":"-C17+C18","v":-1063088},"kr."]
[null,"Korrigerede driftsomkostninger i prisloftet for 2015",{"$f":"C12+C19","v":24759971.483187586},"kr."]
[]
[]
[null,"Korrektion for forventet bortfald af væsentlige omkostninger"]
[null,"Selskabets indberettede bortfald af væsentlige omkostninger inden 2015",0,"kr."]
[null,"Korrektion for forventet bortfald ",{"$f":"SUM(C24:C24)","v":0},"kr."]
[]
[]
[null,"Korrektion for prisudviklingen fra 2014-2015"]
[null,"Driftsomkostningerne i prisloftet for 2014",{"$f":"C20-C25","v":24759971.483187586},"kr."]
[null,"Prisudvikling 2014 - 2015 ",0.08,"pct."]
[null,"Korrektion for prisudvikling",{"$f":"C29*(C30/100)","v":19807.97718655007},"kr."]
[]
[]
[null,"Eventuel forhøjelse til effektivt niveau iht. benchmarkingen"]
[null,"Selskabets effektive driftsomkostninger iht. benchmarkingen",16493647.650113992,"kr."]
[null,"Selskabets pristalskorrigerede driftsomkostninger i 2015-niveau",{"$f":"C29+C31","v":24779779.460374136},"kr."]
[null,"Eventuel forhøjelse til effektivt niveau",{"$f":"IF(C36>C35,0,C35-C36)","v":0},"kr."]
[]
[]
[null,"Korrektion for generelt effektiviseringskrav"]
[null,"Driftsomkostningerne i prisloftet for 2014",{"$f":"C29","v":24759971.483187586},"kr. "]
[null,"Generelt effektiviseringskrav ",0.44,"pct."]
[null,"Endeligt generelt effektiviseringskrav",{"$f":"C41*(C42/100)","v":108943.87452602538},"kr. "]
[]
[]
[null,"Korrektion for individuelt effektiviseringskrav"]
[null,"Rå effektiviseringspotentiale",8576854.1217761803,"kr."]
[null,"Effektiviseringspotentiale efter eventuel korrektion for særlige forhold",8264878.4810880162,"kr."]
[null,"Effektiviseringspotentiale efter forsigtighedshensyn",5135218.0856131054,"kr."]
[null,"Effektiviseringspotentiale efter eventuel korrektion for sammensætning af signifikante costdrivere",5135218.0856131054,"kr. "]
[null,"Umiddelbart effektiviseringskrav",{"$f":"C50/4","v":1283804.5214032764},"kr."]
[null,"Endeligt individuelt effektiviseringskrav",{"$f":"IF(C51>0.05*C29,0.05*C29,IF(C51<0.01*C29,0,C51))","v":1237998.5741593794},"kr. "]

{"sheet":"4. Historiske investeringer","index":3,"n_rows":9,"n_cols":4,"rows_kept":9,"cut":false,"hidden":false,"merged":[[3,1,3,2]]}
[{"$f":"'3. Driftsomkostninger'!A1","v":"Egedal Spildevand A/S"}]
[]
[]
[null,"Fane 4. Historiske investeringer "]
[]
[null,"Tillæg for historiske investeringer "]
[null,"Værdi af selskabets materielle anlægsaktiver pr. 1. januar 2010",1561586569.1074128,"kr."]
[null,"Den årlige standardafskrivning på de materielle anlægsaktiver iht. POLKA",35154327.252014376,"kr."]
[null,"Tillæg i alt i 2015",{"$f":"C8","v":35154327.252014376},"kr."]

{"sheet":"5. Gennemførte investeringer","index":4,"n_rows":38,"n_cols":7,"rows_kept":38,"cut":false,"hidden":false,"merged":[[3,1,3,5],[6,5,6,6]]}
[{"$f":"'4. Historiske investeringer'!A1","v":"Egedal Spildevand A/S"}]
[]
[]
[null,"Fane 5. Gennemførte investeringer i 2010 - 2013 "]
[]
[null,"Tillæg for gennemførte investeringer i 2013"]
[null," Beskrivelse af investeringen   ","Årstal ","Std. levetid (år)   "," Anskaffelses-pris (kr.)","Afskrivning "]
[null,"Strømpeforing Ø 200 mm < Ledningsnet = Ø 500 mm",2013,50,50696,{"$f":"E8/D8","v":1013.92},"kr."]
[null,"Køretøjer, personbil",2013,5,163000,{"$f":"E9/D9","v":32600},"kr."]
[null,"Ledningsnet = Ø 200 mm",2013,75,342805,4570.7333333333336,"kr."]
[null,"Ø 200 mm < Ledningsnet = Ø 500 mm",2013,75,40038,533.84,"kr."]
[null,"Ø 500 mm < Ledningsnet = Ø 800 mm",2013,75,12872,171.62666666666667,"kr."]
[null,"Ø 800 mm < Ledningsnet = Ø 1000 mm",2013,75,328086,4374.4799999999996,"kr."]
[null,"Ø 1000 mm < Ledningsnet = Ø 1200 mm",2013,75,111359,1484.7866666666666,"kr."]
[null,"Ø 1200 mm < Ledningsnet = Ø 1600 mm",2013,75,982350,13098,"kr."]
[null,"Ledningsnet > Ø 1600 mm (rørbassiner og transportledninger)",2013,75,4260206,56802.746666666666,"kr."]
[null,"Brønde",2013,75,237764,3170.1866666666665,"kr."]
[null,"Stik",2013,75,152577,2034.36,"kr."]
[null,"Tryksatte minipumpestationer (husstandssystemer)",2013,30,342622,11420.733333333334,"kr."]
[null,"Kælder (20 - 30 m2)",2013,75,2209892,29465.226666666666,"kr."]
[null,"Installationer \"mekaniske riste og SRO\" Miljøklasse B. (20-30 m2) - Mek/EL",2013,20,20381,1019.05,"kr."]
[null,"Installationer \"mekaniske riste og SRO\" Miljøklasse B. (20-30 m2) - SRO",2013,10,222401,22240.1,"kr."]
[null,"Jordbassin Klasse B",2013,50,2473994,49479.88,"kr."]
[null,"Indløb-/udløbsarrangement",2013,75,500000,6666.666666666667,"kr."]
[null,"Beluftningstanke, Konstruktioner",2013,50,1069069,21381.38,"kr."]
[null,"Beluftningstanke, Mek/EL",2013,20,58928,2946.4,"kr."]
[null,"Ledningsnet = Ø 200 mm",2013,75,1257789,16770.52,"kr."]
[null,"Ø 200 mm < Ledningsnet = Ø 500 mm",2013,75,2662946,35505.946666666663,"kr."]
[null,"Ø 500 mm < Ledningsnet = Ø 800 mm",2013,75,1988999,26519.986666666668,"kr."]
[null,"Strømpeforing = Ø 200 mm",2013,50,538404,10768.08,"kr."]
[null,"Strømpeforing Ø 200 mm < Ledningsnet = Ø 500 mm",2013,50,1302135,26042.7,"kr."]
[null,"Brønde",2013,75,396299,5283.9866666666667,"kr."]
[null,"Stik",2013,75,201571,2687.6133333333332,"kr."]
[null,"Oversvømmelseskort",2013,5,1262661,{"$f":"E34/D34","v":252532.2},"kr."]
[null,"Arbejdsplads - IT",2013,5,120662,24132.400000000001,"kr."]
[null,"Tillæg for 2013 ",null,null,null,{"$f":"SUM(F8:F35)","v":664717.55000000016},"kr."]
[null,"Tillæg for 2010 - 2012",null,null,null,1641036.4316666664,"kr."]
[null,"Samlet tillæg for gennemførte investeringer",null,null,null,{"$f":"F36+F37","v":2305753.9816666665},"kr."]

{"sheet":"6. Korrektion investeringer","index":5,"n_rows":10,"n_cols":4,"rows_kept":10,"cut":false,"hidden":false,"merged":[[3,1,3,3]]}
[{"$f":"'5. Gennemførte investeringer'!A1","v":"Egedal Spildevand A/S"}]
[]
[]
[null,"Fane 6. Korrektion af tillæg for planlagte investeringer"]
[]
[null,"Korrektion af tillæg for planlagte investeringer vedr. 2013"]
[null,"Tillæg for planlagte investeringer i 2013 i prisloft 2013",1074167,"kr."]
[null,"Tillæg for planlagte investeringer i 2013 i prisloft 2014",824833,"kr."]
[null,"Selskabets faktiske afskrivninger på gennemførte investeringer i 2013",{"$f":"'5. Gennemførte investeringer'!F36","v":664717.55000000016},"kr."]
[null,"Korrektion af tillæg for planlagte investeringer vedr. 2013",{"$f":"C9-C7+C9-C8","v":-569564.89999999967},"kr."]

{"sheet":"7. Planlagte investeringer","index":6,"n_rows":40,"n_cols":7,"rows_kept":40,"cut":false,"hidden":false,"merged":[[6,5,6,6],[3,1,3,6]]}
[{"$f":"'6. Korrektion investeringer'!A1","v":"Egedal Spildevand A/S"}]
[]
[]
[null,"Fane 7. Planlagte investeringer "]
[]
[null,"Tillæg for planlagte investeringer i 2014 og 2015"]
[null,"Beskrivelse af investeringen   ","Årstal ","Std. levetid (år)   ","Anskaffelses-pris (kr.)   ","Afskrivning"]
[null,"Beluftningstanke, Mek/EL",2014,20,750000,{"$f":"E8/D8","v":37500},"kr."]
[null,"Indløb med riste, Konstruktioner",2014,60,150000,{"$f":"E9/D9","v":2500},"kr."]
[null,"Ledningsnet = Ø 200 mm",2014,75,4150000,{"$f":"E10/D10","v":55333.333333333336},"kr."]
[null,"Ø 200 mm < Ledningsnet = Ø 500 mm",2014,75,8850000,118000,"kr."]
[null,"Strømpeforing Ø 200 mm < Ledningsnet = Ø 500 mm",2014,50,5500000,110000,"kr."]
[null,"Stik",2014,75,250000,3333.3333333333335,"kr."]
[null,"Tryksatte minipumpestationer (husstandssystemer)",2014,30,300000,10000,"kr."]
[null,"Pumpestationer i brønde (< 6,25 m2), Konstruktioner",2014,50,100000,2000,"kr."]
[null,"Pumpestationer i brønde (< 6,25 m2), Mek/EL",2014,20,650000,32500,"kr."]
[null,"Pumpestationer i brønde (< 6,25 m2), SRO",2014,10,100000,10000,"kr."]
[null,"Installationer \"mekaniske riste og SRO\" Miljøklasse A. (7-20 m2) - Mek/EL",2014,20,500000,25000,"kr."]
[null,"Forsinkelsesbassiner, lukkede uden automatisk rensning og SRO Miljøklasse B (mindre end 1.000 m3)",2014,50,5500000,110000,"kr."]
[null,"Jordbassin Klasse B",2014,50,4000000,80000,"kr."]
[null,"Indløb-/udløbsarrangement",2014,75,2200000,29333.333333333332,"kr."]
[null,"Beluftningstanke, Mek/EL",2015,20,100000,5000,"kr."]
[null,"Slutafvanding, slam - lavteknologisk (slambede), Konstruktioner",2015,60,500000,8333.3333333333339,"kr."]
[null,"Slutafvanding, slam - lavteknologisk (slambede), Mek/EL",2015,20,200000,10000,"kr."]
[null,"Slutafvanding, slam - lavteknologisk (slambede), SRO",2015,10,50000,5000,"kr."]
[null,"Slutafvanding, slam - højteknologisk (centrifuger), Konstruktioner",2015,60,500000,8333.3333333333339,"kr."]
[null,"Slutafvanding, slam - højteknologisk (centrifuger), Mek/El",2015,20,100000,5000,"kr."]
[null,"Slutafvanding, slam - højteknologisk (centrifuger), SRO",2015,10,500000,50000,"kr."]
[null,"Ø 200 mm < Ledningsnet = Ø 500 mm",2015,75,15000000,200000,"kr."]
[null,"Strømpeforing Ø 200 mm < Ledningsnet = Ø 500 mm",2015,50,3000000,60000,"kr."]
[null,"Stik",2015,75,250000,3333.3333333333335,"kr."]
[null,"Pumpestationer i brønde (< 6,25 m2), Konstruktioner",2015,50,1000000,20000,"kr."]
[null,"Pumpestationer i brønde (< 6,25 m2), Mek/EL",2015,20,300000,15000,"kr."]
[null,"Pumpestationer i brønde (< 6,25 m2), SRO",2015,10,250000,25000,"kr."]
[null,"Forsinkelsesbassiner, lukkede uden automatisk rensning og SRO Miljøklasse B (mindre end 1.000 m3)",2015,50,7250000,145000,"kr."]
[null,"Jordbassin Klasse B",2015,50,2500000,50000,"kr."]
[null,"Indløb-/udløbsarrangement",2015,75,1500000,20000,"kr."]
[null,"Tillæg for 2014",null,null,null,{"$f":"SUMIF(C8:C37,\"2014\",F8:F37)","v":625500.00000000012},"kr."]
[null,"Tillæg for 2015",null,null,null,{"$f":"SUMIF(C8:C37,\"2015\",F8:F37)","v":630000},"kr."]
[null,"Tillæg i alt",null,null,null,{"$f":"F38+F39","v":1255500},"kr."]

{"sheet":"8. 1-1 omkostninger","index":7,"n_rows":26,"n_cols":4,"rows_kept":26,"cut":false,"hidden":false,"merged":[[3,1,3,3],[16,1,16,3],[22,1,22,3]]}
[{"$f":"'7. Planlagte investeringer'!A1","v":"Egedal Spildevand A/S"}]
[]
[]
[null,"Fane 8. 1:1 omkostninger"]
[]
[null,"Tillæg for budgetterede 1:1 omkostninger i 2015"]
[null,"Betaling til Forsyningssekretariatet",33000,"kr."]
[null,"Spildevandsafgift",200000,"kr."]
[null,"Betaling af selskabsskatter ",980000,"kr."]
[null,"Køb af varer og tjenesteydelser hos et andet prisloftreguleret vandselskab",4440000,"kr."]
[null,"Ejendomsskatter",16000,"kr."]
[null,"Tillæg i alt ",{"$f":"SUM(C7:C11)","v":5669000},"kr."]
[]
[]
[]
[]
[null,"Tillæg for budgetterede nødvendige udgifter til revisorerklæringer samt ordinært medlemskab af DANVA og FVD i 2015"]
[null,"Betaling for ordinært medlemskab af DANVA/FVD",58000,"kr."]
[null,"Betaling for revisorerklæringer",26000,"kr."]
[null,"Tillæg i alt ",{"$f":"SUM(C18:C19)","v":84000},"kr."]
[]
[]
[null,"Korrektion af tillæg for faktiske 1:1 omkostninger (inkl. revisorerklæringer og ordinært medlemskab af DANVA/FVD) i 2013"]
[null,"Selskabets faktiske 1:1 omkostninger mv. i 2013, jf. reguleringsregnskabet",4307972,"kr."]
[null,"Tillæg for budgetterede 1:1 omkostninger mv. i prisloft 2013",4987000,"kr."]
[null,"Korrektion af tillæg for budgetterede 1:1 omkostninger mv. i 2013",{"$f":"C24-C25","v":-679028},"kr."]

{"sheet":"9. Miljø- og servicemål","index":8,"n_rows":16,"n_cols":4,"rows_kept":16,"cut":false,"hidden":false,"merged":[[3,1,3,3]]}
[{"$f":"'8. 1-1 omkostninger'!A1","v":"Egedal Spildevand A/S"}]
[]
[]
[null,"Fane 9. Driftsomkostninger til miljø- og servicemål "]
[]
[null,"Tillæg for budgetterede driftsomkostninger til miljø- og servicemål i 2015"]
[null,"Indsats mod oversvømmelse (radarprojektet)",170000,"kr."]
[null,"Skenkelsø Sø og udløb ",115000,"kr."]
[null,"Tillæg i alt",{"$f":"SUM(C7:C8)","v":285000},"kr."]
[]
[]
[]
[null,"Korrektion af tillæg for faktiske driftsomkostninger til miljø- og servicemål i 2013"]
[null,"Selskabets faktiske driftsomkostninger til miljø- og servicemål i 2013, jf. reguleringsregnskabet",268784,"kr."]
[null,"Tillæg for budgetterede driftsomkostninger til miljø- og servicemål i prisloft 2013",530230,"kr."]
[null,"Korrektion af tillæg for budgetterede driftsomkostninger til miljø- og servicemål i 2013",{"$f":"C14-C15","v":-261446},"kr."]

{"sheet":"10. Klimatilpasning","index":9,"n_rows":16,"n_cols":4,"rows_kept":16,"cut":false,"hidden":false,"merged":[[3,1,3,3],[12,1,12,3],[6,1,6,3]]}
[{"$f":"'9. Miljø- og servicemål'!A1","v":"Egedal Spildevand A/S"}]
[]
[]
[null,"Fane 10. Medfinansiering af klimatilpasningsprojekter"]
[]
[]
[null,"Tillæg for budgetterede omkostninger til medfinansiering af klimatilpasningsprojekter i 2015"]
[null,"Stenløse Å",305000,"kr."]
[null,"Tillæg i alt",{"$f":" SUM(C8:C8)","v":305000},"kr."]
[]
[]
[]
[null,"Korrektion af tillæg for faktiske omkostninger til medfinansiering af klimatilpasningsprojekter i 2013"]
[null,"Selskabets faktiske driftsomkostninger til klimatilpasningsprojekter i 2013, jf. reguleringsregnskabet",0,"kr."]
[null,"Tillæg for budgetterede driftsomkostninger til klimatilpasningsprojekter i prisloft 2013",0,"kr."]
[null,"Korrektion af tillæg for budgetterede omkostninger til klimatilpasningsprojekter i 2013",{"$f":"C14-C15","v":0},"kr."]

{"sheet":"11. Nettofinansielle poster","index":10,"n_rows":16,"n_cols":4,"rows_kept":16,"cut":false,"hidden":false,"merged":[[3,1,3,3]]}
[{"$f":"'10. Klimatilpasning'!A1","v":"Egedal Spildevand A/S"}]
[]
[]
[null,"Fane 11. Nettofinansielle poster"]
[]
[null,"Tillæg for budgetterede nettofinansielle poster i 2015"]
[null,"Budgetterede renteudgifter og gebyrer i 2015",0,"kr."]
[null,"Budgetterede renteindtægter i 2015",300000,"kr."]
[null,"Tillæg/fradrag i alt",{"$f":"C7-C8","v":-300000},"kr."]
[]
[]
[]
[null,"Korrektion af tillæg for faktiske nettofinansielle poster i 2013"]
[null,"Selskabets faktiske nettofinansielle poster i 2013, jf. reguleringsregnskabet",-133987,"kr."]
[null,"Tillæg for budgetterede nettofinansielle poster i prisloft 2013",-100000,"kr."]
[null,"Korrektion af tillæg for budgetterede nettofinansielle poster i 2013",{"$f":"C14-C15","v":-33987},"kr."]

{"sheet":"12. Over- eller underdækning","index":11,"n_rows":11,"n_cols":4,"rows_kept":11,"cut":false,"hidden":false,"merged":[[3,1,3,3]]}
[{"$f":"'11. Nettofinansielle poster'!A1","v":"Egedal Spildevand A/S"}]
[]
[]
[null,"Fane 12. Over- eller underdækning til og med 2010"]
[]
[null,"Tillæg/fradrag for over- eller underdækning til og med 2010"]
[null,"Opgjort over- eller underdækning per 31. december 2010",-3544390,"kr."]
[null,"Heraf beløb indregnet i prislofterne for 2011 - 2014",237977.76190476259,"kr."]
[null,"Endnu ikke indregnet over- eller underdækning",{"$f":"C7-C8","v":-3782367.7619047626},"kr."]
[null,"Resterende indregningsperiode (fastsat i prisloftet for 2012)",6,"år"]
[null,"Tillæg/fradrag i alt",{"$f":"IF(C7=0,0,C9/C10)","v":-630394.6269841271},"kr."]

{"sheet":"13. Kontrol med indtægtsrammen","index":12,"n_rows":38,"n_cols":12,"rows_kept":38,"cut":false,"hidden":false,"merged":[[3,1,3,5],[30,1,30,4],[5,1,5,5]]}
[{"$f":"'12. Over- eller underdækning'!A1","v":"Egedal Spildevand A/S"}]
[]
[]
[null,"Fane 13. Korrektion for overholdelse af indtægtsrammen i prisloftet for 2013"]
[]
[null,"Samlet opgørelse vedrørende overholdelse af indtægtsrammen i prisloftet for 2013"]
[null,"Indtægtsramme i prisloftet for 2013",null,null,69171896.965740204,"kr."]
[null,"Ikke anvendt likviditet vedrørende investeringer i 2013"]
[null,"Tillæg for historiske investeringer ",35100905.077150814,"kr."]
[null,"Tillæg for gennemførte investeringer i 2011",1705666,"kr."]
[null,"Korrektion af tillæg for planlagte investeringer i 2011",29229,"kr."]
[null,"Tillæg for planlagte investeringer i 2012 og 2013",2122500,"kr."]
[null,"Indtægter fra tilslutningsbidrag",2795420,"kr."]
[null,"Indtægter fra salg af anlægsaktiver",0,"kr."]
[null,"Erstatninger vedr. anlægsaktiver mv.",0,"kr."]
[null,"Ekstraordinær effektiviseringsgevinst anvendt til investeringer",0,"kr."]
[null,"Udgifter til investeringer",-30746844,"kr."]
[null,"Ikke anvendt likviditet vedr. investeringer i alt",{"$f":"SUM(C9:C17)","v":11006876.077150814},"kr.",{"$f":"IF(C18<0,0,-C18)","v":-11006876.077150814},"kr."]
[null,"Ekstraordinære effektiviseringsgevinster anvendt til takstnedsættelse"]
[null,"Ekstraordinær effektiviseringsgevinst anvendt til takstnedsættelse",0,"kr.",{"$f":"-C20","v":0},"kr."]
[null,"Korrektion af ikke opkrævet tillæg fra 2011 i prisloft 2013"]
[null,"Korrektion af ikke opkrævet tillæg fra 2011 i prisloft 2013",0,"kr.",{"$f":"-C22","v":0},"kr."]
[null,"Indtægter fra primære aktiviteter mv."]
[null,"Indtægter fra kubikmetertakster, faste takster, særbidrag, målergebyrer samt andre takster og gebyrer",64994723,"kr."]
[null,"Andre indtægter i prisloftåret, som selskabet har opnået i forbindelse med eller som følge af selskabets primære aktiviteter",0,"kr."]
[null,"Indtægter fra primære aktiviteter mv. i alt",{"$f":"SUM(C24:C25)","v":64994723},"kr.",{"$f":"-C26","v":-64994723},"kr."]
[null,"Tillæg/fradrag i prisloftet for 2015 i alt",null,null,{"$f":"E7+E18+E20+E22+E26","v":-6829702.1114106104},"kr."]
[]
[]
[]
[null,"Oversigt over ekstraordinære effektiviseringsgevinster"]
[]
[null,null,2012,null,2013,null,2014,null,2015,null,2016]
[null,"Indhentet ekstraordinær effektiviseringsgevinst",326845,"kr.",371007,"kr.",null,"kr.",null,"kr.",null,"kr."]
[null,"Gevinst anvendt til investeringer",0,"kr.",0,"kr.",null,"kr.",null,"kr.",null,"kr."]
[null,"Gevinst anvendt til takstnedsættelse",0,"kr.",0,"kr.",null,"kr.",null,"kr.",null,"kr."]
[null,"Korrektion for  effektiviseringsgevinst der ikke er anvendt inden 4 år",0,"kr.",0,"kr.",null,"kr.",null,"kr.",{"$f":"IF(C38>SUM(E35:I37),C38-SUM(E35:I36),0)*-1","v":-326845},"kr."]
[null,"Resterende gevinst",{"$f":"C34-C35-C36","v":326845},"kr.",{"$f":"C38+E34-E35-E36","v":697852},"kr.",{"$f":"E38+G34-G35-G36","v":697852},"kr.",{"$f":"G38+I34-I35-I36","v":697852},"kr.",{"$f":"I38+K34-K35-K36+K37","v":371007},"kr."]